fUST/lending_fUST_20250610
["ID","MTS","AMOUNT","RATE_DAILY","PERIOD"]
[365184403,1749525039994,-160.814289,0.0002214,7]
[365184404,1749525040003,-769.55959104,0.00022141,6]
[365184405,1749525040012,-3000.0,0.0002215,2]
[365184406,1749525040022,-500.0,0.00022159,2]
[365184407,1749525040032,-3000.0,0.0002216,2]
[365184408,1749525040041,-151.0,0.00022161,7]
[365184409,1749525040050,-401.524611,0.00022161,2]
[365184410,1749525040060,-401.524611,0.00022161,2]
[365184411,1749525040070,-424.12530924,0.00022161,2]
[365184412,1749525040080,-11858.11761888,0.00022161,2]
[365184413,1749525040090,-834.9046531,0.00022161,2]
[365184414,1749525040100,-842.5625,0.00022161,2]
[365184415,1749525040110,-229.6792923,0.00022161,2]
[365184417,1749525040119,-160.0,0.00022161,2]
[365184419,1749525040128,-160.0,0.00022165,2]
[365184421,1749525040137,-160.0,0.00022169,2]
[365184423,1749525040146,-3000.0,0.0002217,2]
[365184425,1749525040155,-501.97576489,0.00022173,2]
[365184427,1749525040164,-513.75607157,0.00022173,2]
[365184429,1749525040173,-3000.0,0.0002218,2]
[365184431,1749525040183,-962.54960139,0.00022181,2]
[365184433,1749525040191,-460.0,0.00022181,4]
[365184435,1749525040201,-3075.49,0.00022181,4]
[365184437,1749525040210,-710.63,0.00022181,4]
[365184439,1749525040220,-632.86,0.00022181,4]
[365184441,1749525040229,-1093.05,0.00022181,4]
[365184443,1749525040239,-805.4,0.00022181,4]
[365184445,1749525040248,-460.0,0.00022182,4]
[365184447,1749525040257,-695.32,0.00022182,4]
[365184449,1749525040267,-460.0,0.00022182,4]
[365184451,1749525040276,-460.0,0.00022182,4]
[365184453,1749525040286,-832.65,0.00022182,4]
[365184455,1749525040295,-460.0,0.00022182,4]
[365184457,1749525040305,-675.53,0.00022182,4]
[365184459,1749525040314,-483.71613596,0.00022182,4]
[365184461,1749525040323,-504.26434367,0.00022182,4]
[365184463,1749525040334,-490.51624937,0.00022182,4]
[365184465,1749525040344,-460.0,0.00022182,4]
[365184467,1749525040354,-460.0,0.00022182,4]
[365184469,1749525040364,-460.0,0.00022182,4]
[365184471,1749525040374,-460.0,0.00022182,4]
[365184473,1749525040384,-1139.0,0.00022184,2]
[365184474,1749525040394,-460.0,0.00022184,4]
[365184475,1749525040403,-1500.0,0.00022184,14]
[365184476,1749525040412,-1500.0,0.00022184,14]
[365184477,1749525040421,-501.274306,0.00022184,14]
[365184478,1749525040431,-156.167117,0.00022184,7]
[365184479,1749525040440,-401.524611,0.00022184,2]
[365184480,1749525040449,-401.524611,0.00022184,2]
[365184481,1749525040458,-3000.0,0.0002219,2]
[365184482,1749525040467,-3000.0,0.000222,2]
[365184483,1749525040477,-5428.100774,0.0002221,2]
[365184484,1749525040486,-401.524611,0.00022278,2]
[365184485,1749525040495,-401.524611,0.00022278,2]
[365184486,1749525040505,-5427.0,0.00022278,7]
[365184487,1749525040514,-1139.0,0.00022279,2]
[365184488,1749525040524,-769.55959104,0.00022279,6]
[365184489,1749525040534,-1447.28868267,0.00022317,2]
[365184490,1749525040543,-9889.54128746,0.000224,2]
[365184491,1749525040553,-962.54960139,0.00022417,2]
[365184492,1749525040563,-769.55959104,0.00022417,7]
[365184493,1749525040572,-460.0,0.00022455,4]
[365184494,1749525040586,-3075.49,0.00022455,4]
[365184495,1749525040595,-710.63,0.00022455,4]
[365184496,1749525040603,-632.86,0.00022455,4]
[365184497,1749525040613,-1093.05,0.00022455,4]
[365184498,1749525040622,-805.4,0.00022455,4]
[365184499,1749525040631,-460.0,0.00022456,4]
[365184500,1749525040640,-695.32,0.00022456,4]
[365184502,1749525040649,-460.0,0.00022456,4]
[365184504,1749525040659,-460.0,0.00022456,4]
[365184506,1749525040669,-832.65,0.00022456,4]
[365184508,1749525040678,-401.524611,0.00022456,2]
[365184510,1749525040687,-401.524611,0.00022456,2]
[365184512,1749525040696,-460.0,0.00022456,4]
[365184514,1749525040707,-675.53,0.00022456,4]
[365184516,1749525040716,-460.0,0.00022456,4]
[365184518,1749525040725,-460.0,0.00022456,4]
[365184520,1749525040735,-460.0,0.00022456,4]
[365184522,1749525040744,-460.0,0.00022458,4]
[365184524,1749525040753,-451.45,0.00022465,2]
[365184527,1749525040763,-1139.0,0.00022485,2]
[365184529,1749525040773,-1251.81,0.00022497,2]
[365184531,1749525040782,-5427.0,0.00022513,7]
[365184533,1749525040791,-769.55959104,0.00022555,7]
[365184535,1749525040801,-16000.0,0.00022579,2]
[365184537,1749525040811,-401.524611,0.00022579,2]
[365184539,1749525040820,-401.52460587,0.00022579,2]
[365184541,1749525040829,-519.68,0.000226,7]
[365184543,1749525040838,-962.54960139,0.00022654,2]
[365184544,1749525040847,-1139.0,0.00022673,2]
[365184546,1749525040856,-1139.0,0.00022686,2]
[365184548,1749525040865,-769.55959104,0.00022693,7]
[365184550,1749525040874,-209.898236,0.000227,30]
[365184552,1749525040884,-507.58503409,0.00022707,3]
[365184554,1749525040893,-1139.0,0.00022714,2]
[365184556,1749525040902,-150.125,0.00022727,2]
[365184558,1749525040911,-150.0,0.00022727,2]
[365184560,1749525040920,-150.184,0.00022727,2]
[365184562,1749525040930,-150.0,0.00022727,2]
[365184564,1749525040939,-150.0,0.00022727,2]
[365184566,1749525040948,-460.0,0.00022729,4]
[365184568,1749525040958,-3075.49,0.00022729,4]
[365184570,1749525040967,-710.63,0.00022729,4]
[365184571,1749525040976,-632.86,0.00022729,4]
[365184573,1749525040986,-1093.05,0.00022729,4]
[365184575,1749525040995,-805.4,0.00022729,4]
[365184577,1749525041004,-460.0,0.0002273,4]
[365184579,1749525041013,-695.32,0.0002273,4]
[365184581,1749525041023,-460.0,0.0002273,4]
[365184583,1749525041033,-460.0,0.0002273,4]
[365184585,1749525041042,-832.65,0.0002273,4]
[365184587,1749525041051,-460.0,0.0002273,4]
[365184589,1749525041059,-675.53,0.0002273,4]
[365184591,1749525041067,-598.74,0.0002273,4]
[365184593,1749525041076,-460.0,0.0002273,4]
[365184595,1749525041086,-460.0,0.0002273,4]
[365184598,1749525041095,-460.0,0.00022732,4]
[365184600,1749525041104,-5427.0,0.00022747,7]
[365184602,1749525041113,-1139.0,0.00022821,2]
[365184604,1749525041122,-769.55959104,0.00022831,8]
[365184606,1749525041132,-962.54960139,0.0002289,2]
[365184608,1749525041141,-1139.0,0.00022905,2]
[365184610,1749525041150,-200.0,0.00022949,2]
[365184612,1749525041159,-6662.71481362,0.0002295,7]
[365184614,1749525041169,-6662.71481362,0.0002295,7]
[365184616,1749525041179,-16002.40659991,0.0002295,7]
[365184618,1749525041188,-16002.40659991,0.0002295,7]
[365184620,1749525041197,-769.55959104,0.00022969,8]
[365184622,1749525041206,-500.57016739,0.00022973,2]
[365184624,1749525041215,-500.0,0.00022973,2]
[365184626,1749525041224,-251.68068876,0.00022973,2]
[365184628,1749525041234,-507.91466464,0.00022973,2]
[365184630,1749525041243,-600.0,0.00022973,2]
[365184632,1749525041251,-500.0,0.00022973,2]
[365184634,1749525041261,-500.0,0.00022973,2]
[365184636,1749525041270,-500.0,0.00022973,2]
[365184638,1749525041279,-5427.0,0.00022981,7]
[365184640,1749525041288,-200.45704957,0.00022989,2]
[365184642,1749525041297,-398406.94044691,0.0002299,2]
[365184644,1749525041306,-1139.0,0.00022996,2]
[365184646,1749525041315,-200.0,0.00022999,2]
[365184648,1749525041325,-13914.0,0.00023,2]
[365184650,1749525041334,-160.0,0.00023,3]
[365184652,1749525041344,-65278.0,0.00023,30]
[365184654,1749525041353,-11858.11761888,0.00023,30]
[365184656,1749525041362,-202.22445528,0.00023,2]
[365184658,1749525041371,-315.18454239,0.00023,30]
[365184660,1749525041380,-842.5625,0.00023,30]
[365184662,1749525041389,-460.0,0.00023003,4]
[365184664,1749525041398,-3075.49,0.00023003,4]
[365184666,1749525041406,-710.63,0.00023003,4]
[365184668,1749525041416,-632.86,0.00023003,4]
[365184670,1749525041425,-1093.05,0.00023003,4]
[365184672,1749525041434,-805.4,0.00023003,4]
[365184674,1749525041443,-460.0,0.00023004,4]
[365184676,1749525041453,-695.32,0.00023004,4]
[365184678,1749525041463,-460.0,0.00023004,4]
[365184680,1749525041472,-460.0,0.00023004,4]
[365184682,1749525041482,-832.65,0.00023004,4]
[365184683,1749525041490,-460.0,0.00023004,4]
[365184686,1749525041500,-675.53,0.00023004,4]
[365184687,1749525041509,-460.0,0.00023004,4]
[365184689,1749525041518,-460.0,0.00023004,4]
[365184691,1749525041529,-215.0738,0.00023005,2]
[365184693,1749525041538,-577.20661195,0.00023006,4]
[365184696,1749525041548,-161.0,0.00023014,7]
[365184697,1749525041557,-174.97181292,0.00023056,2]
[365184699,1749525041567,-1139.0,0.00023064,2]
[365184702,1749525041581,-2089.3,0.000231,7]
[365184704,1749525041590,-769.55959104,0.00023107,8]
[365184706,1749525041599,-1139.0,0.00023117,2]
[365184707,1749525041608,-16000.0,0.00023127,2]
[365184709,1749525041619,-201.0,0.0002319,7]
[365184711,1749525041628,-4232.9540596,0.000232,14]
[365184713,1749525041637,-1139.0,0.00023211,2]
[365184715,1749525041647,-5427.0,0.00023215,7]
[365184718,1749525041658,-769.55959104,0.00023245,8]
[365184720,1749525041667,-1139.0,0.00023269,2]
[365184722,1749525041677,-460.0,0.00023277,4]
[365184723,1749525041686,-3075.49,0.00023277,4]
[365184725,1749525041696,-710.63,0.00023277,4]
[365184728,1749525041706,-632.86,0.00023277,4]
[365184729,1749525041715,-1093.05,0.00023277,4]
[365184731,1749525041724,-805.4,0.00023277,4]
[365184733,1749525041734,-372.96617656,0.00023278,4]
[365184735,1749525041744,-695.32,0.00023278,4]
[365184737,1749525041753,-439.17173393,0.00023278,4]
[365184739,1749525041763,-460.0,0.00023278,4]
[365184741,1749525041772,-832.65,0.00023278,4]
[365184743,1749525041781,-460.0,0.00023278,4]
[365184745,1749525041791,-675.53,0.00023278,4]
[365184747,1749525041800,-460.0,0.00023278,4]
[365184749,1749525041810,-460.0,0.00023278,4]
[365184752,1749525041820,-155.0,0.00023279,2]
[365184754,1749525041829,-151.0,0.00023288,2]
[365184756,1749525041839,-151.0,0.00023315,2]
[365184758,1749525041848,-151.0,0.00023343,2]
[365184760,1749525041857,-1139.0,0.00023364,2]
[365184762,1749525041866,-215.39778194,0.0002337,2]
[365184764,1749525041876,-769.55959104,0.00023383,9]
[365184765,1749525041885,-316.78,0.00023394,3]
[365184767,1749525041894,-151.0,0.000234,8]
[365184769,1749525041903,-1855.2,0.00023404,3]
[365184771,1749525041912,-927.6,0.00023404,3]
[365184773,1749525041921,-633.58,0.00023404,3]
[365184775,1749525041930,-1447.28868267,0.00023449,2]
[365184777,1749525041939,-5427.0,0.00023449,7]
[365184779,1749525041948,-3710.4,0.0002347,3]
[365184781,1749525041957,-1139.0,0.0002348,2]
[365184783,1749525041969,-1649.54349,0.00023499,2]
[365184785,1749525041978,-2004.69,0.000235,2]
[365184787,1749525041987,-30171.75847775,0.000235,7]
[365184789,1749525041996,-424.12530924,0.000235,3]
[365184791,1749525042006,-834.9046531,0.000235,3]
[365184793,1749525042015,-160.0,0.000235,3]
[365184795,1749525042024,-842.5625,0.000235,3]
[365184797,1749525042034,-158.768505,0.00023519,15]
[365184799,1749525042044,-1877.71,0.00023519,2]
[365184801,1749525042053,-1000.0,0.00023521,2]
[365184803,1749525042062,-1200.0,0.00023521,2]
[365184805,1749525042071,-1000.0,0.00023521,2]
[365184807,1749525042080,-1000.0,0.00023521,2]
[365184809,1749525042090,-1000.0,0.00023521,2]
[365184811,1749525042098,-769.55959104,0.00023521,9]
[365184813,1749525042108,-460.0,0.00023551,4]
[365184825,1749525042211,-3075.49,0.00023551,4]
[365184828,1749525042220,-710.63,0.00023551,4]
[365184830,1749525042230,-632.86,0.00023551,4]
[365184832,1749525042239,-805.4,0.00023551,4]
[365184833,1749525042249,-1093.05,0.00023551,4]
[365184836,1749525042259,-800.0,0.00023552,2]
[365184838,1749525042268,-695.32,0.00023552,4]
[365184840,1749525042278,-460.0,0.00023552,4]
[365184842,1749525042288,-832.65,0.00023552,4]
[365184844,1749525042298,-460.0,0.00023552,4]
[365184846,1749525042307,-675.53,0.00023552,4]
[365184848,1749525042316,-460.0,0.00023552,4]
[365184850,1749525042325,-460.0,0.00023552,4]
[365184852,1749525042335,-35728.66677974,0.00023565,2]
[365184854,1749525042344,-35728.66677974,0.00023587,2]
[365184856,1749525042354,-5000.13,0.000236,30]
[365184858,1749525042364,-519.68,0.000236,7]
[365184860,1749525042374,-35728.66677974,0.00023621,2]
[365184862,1749525042383,-28196.78097412,0.00023633,2]
[365185309,1749525046604,-460.0,0.0002136,4]
[365185311,1749525046614,-5000.0,0.00021418,2]
[365185314,1749525046624,-460.0,0.00021633,4]
[365185316,1749525046635,-460.0,0.00021634,4]
[365185318,1749525046644,-460.0,0.00021907,4]
[365185320,1749525046653,-460.0,0.00021908,4]
[365185322,1749525046665,-11042.23209649,0.00022003,7]
[365185324,1749525046678,-815.88552239,0.00022003,7]
[365185326,1749525046687,-460.0,0.00022181,4]
[365185328,1749525046696,-158.21451201,0.00022182,4]
[365185330,1749525046706,-460.0,0.00022455,4]
[365185332,1749525046715,-391.47706483,0.00022729,4]
[365185334,1749525046729,-68.52293517,0.00022729,4]
[365185336,1749525046738,-460.0,0.00023003,4]
[365185338,1749525046748,-460.0,0.00023277,4]
[365185340,1749525046757,-158.74025398,0.000235,3]
[365185346,1749525046808,-11699.3773649,0.000235,3]
[365185348,1749525046817,-460.0,0.00023551,4]
[365185350,1749525046828,-7531.88580562,0.00023633,2]
[365185352,1749525046838,-769.55959104,0.00023659,9]
[365185354,1749525046847,-16000.0,0.00023675,2]
[365185357,1749525046857,-5427.0,0.00023684,7]
[365185358,1749525046866,-3271.45674147,0.000237,2]
[365185360,1749525046875,-309.69694293,0.00023773,2]
[365185362,1749525046886,-500.0,0.00023773,2]
[365185365,1749525046895,-500.0,0.0002378,9]
[365185367,1749525046905,-769.55959104,0.00023797,9]
[365185368,1749525046914,-3271.45674139,0.00023798,2]
[365185370,1749525046923,-41120.1583543,0.00023799,2]
[365185372,1749525046933,-76240.2594773,0.000238,3]
[365185375,1749525046945,-273785.58047934,0.000238,3]
[365185421,1749525047456,-8914.04882755,0.000238,3]
[365190696,1749525165814,-171.5666188,0.00020912,2]
[365190697,1749525165836,-955.27,0.00021095,4]
[365190698,1749525165857,-460.0,0.00021359,4]
[365190699,1749525165878,-300.0,0.00021359,2]
[365190700,1749525165901,-460.0,0.0002136,4]
[365190701,1749525165923,-874.22,0.0002136,4]
[365190702,1749525165945,-500.0,0.0002136,4]
[365190703,1749525165966,-460.0,0.0002136,4]
[365190704,1749525165988,-460.0,0.0002136,4]
[365190705,1749525166008,-460.0,0.0002136,4]
[365190706,1749525166029,-955.27,0.00021369,4]
[365190707,1749525166050,-603.41,0.00021478,2]
[365190708,1749525166071,-460.0,0.00021633,4]
[365190709,1749525166092,-460.0,0.00021633,4]
[365190710,1749525166113,-460.0,0.00021633,4]
[365190711,1749525166134,-460.0,0.00021633,4]
[365190712,1749525166153,-159.60332474,0.00021633,4]
[365190713,1749525166173,-254.66005646,0.00021633,4]
[365190716,1749525292276,-5000.0,0.00020599,6]
[365190717,1749525292297,-198.2618983,0.00020807,2]
[365190718,1749525292497,-818.12,0.00021095,4]
[365190719,1749525292524,-766.26,0.00021095,4]
[365190720,1749525292551,-996.64,0.00021095,4]
[365190721,1749525292573,-460.0,0.00021095,4]
[365190722,1749525292597,-706.68,0.00021095,4]
[365190723,1749525292621,-739.79,0.00021095,4]
[365190724,1749525292646,-460.0,0.00021095,4]
[365190725,1749525292672,-460.0,0.00021095,4]
[365190726,1749525292693,-460.0,0.00021095,4]
[365190727,1749525292716,-460.0,0.00021359,4]
[365190728,1749525292739,-472.26061701,0.00021359,4]
[365190729,1749525292761,-460.0,0.00021359,4]
[365190730,1749525292782,-460.0,0.00021359,4]
[365190731,1749525292802,-460.0,0.0002136,4]
[365190732,1749525292824,-256.38224862,0.0002136,4]
[365190733,1749525292846,-460.0,0.0002136,4]
[365190734,1749525292867,-50000.0,0.0002136,2]
[365190735,1749525292889,-818.12,0.00021369,4]
[365190736,1749525292912,-766.26,0.00021369,4]
[365190737,1749525292934,-996.64,0.00021369,4]
[365190738,1749525292956,-420.0,0.00021369,4]
[365190739,1749525292978,-706.68,0.00021369,4]
[365190740,1749525293001,-739.79,0.00021369,4]
[365190741,1749525293025,-460.0,0.00021369,4]
[365190742,1749525293048,-460.0,0.00021369,4]
[365190743,1749525293070,-478.55,0.00021369,4]
[365190744,1749525293093,-595.73,0.00021468,2]
[365190745,1749525293114,-205.33994354,0.00021633,4]
[365190746,1749525293135,-460.0,0.00021633,4]
[365190747,1749525293156,-427.75814692,0.00021633,4]
[365190748,1749525293177,-460.0,0.00021633,4]
[365190749,1749525293200,-460.0,0.00021633,4]
[365190750,1749525293223,-460.0,0.00021633,4]
[365190751,1749525293249,-460.0,0.00021633,4]
[365190752,1749525293271,-460.0,0.00021633,4]
[365190753,1749525293293,-460.0,0.00021633,4]
[365190754,1749525293314,-472.19668985,0.00021633,4]
[365190755,1749525293337,-460.0,0.00021633,4]
[365190756,1749525293358,-460.0,0.00021633,4]
[365190757,1749525293381,-460.0,0.00021633,4]
[365190758,1749525293402,-470.58569877,0.00021633,4]
[365190759,1749525293423,-460.0,0.00021633,4]
[365190760,1749525293445,-486.86981558,0.00021633,4]
[365190761,1749525293468,-460.0,0.00021633,4]
[365190762,1749525293491,-460.0,0.00021634,4]
[365190763,1749525293522,-460.0,0.00021634,4]
[365190764,1749525293547,-460.0,0.00021634,4]
[365190765,1749525293571,-460.0,0.00021634,4]
[365190766,1749525293595,-460.0,0.00021634,4]
[365190767,1749525293617,-350.82255718,0.00021634,4]
[365190768,1749525293641,-460.0,0.00021634,4]
[365190769,1749525293669,-460.0,0.00021634,4]
[365190770,1749525293690,-466.84537579,0.00021634,4]
[365190771,1749525293716,-440.0,0.00021634,4]
[365190772,1749525293741,-460.0,0.00021634,4]
[365190773,1749525293764,-460.0,0.00021634,4]
[365190774,1749525293787,-460.0,0.00021634,4]
[365190775,1749525293809,-457.41154303,0.00021634,4]
[365190776,1749525293832,-460.0,0.00021634,4]
[365190777,1749525293856,-872.49,0.00021634,4]
[365190778,1749525293879,-460.0,0.00021634,4]
[365190779,1749525293900,-955.27,0.00021643,4]
[365190780,1749525293923,-818.12,0.00021643,4]
[365190781,1749525293945,-766.26,0.00021643,4]
[365190782,1749525293968,-996.64,0.00021643,4]
[365190783,1749525293989,-706.68,0.00021643,4]
[365190784,1749525294011,-739.79,0.00021643,4]
[365190785,1749525294034,-460.0,0.00021643,4]
[365190786,1749525294056,-460.0,0.00021643,4]
[365190787,1749525294077,-509.97905134,0.00021643,4]
[365190788,1749525294098,-150.0,0.000217,2]
[365190789,1749525294118,-151.0,0.0002181,2]
[365190790,1749525294139,-460.0,0.00021907,4]
[365190791,1749525294160,-460.0,0.00021907,4]
[365190792,1749525294182,-460.0,0.00021907,4]
[365190793,1749525294203,-460.0,0.00021907,4]
[365190794,1749525294224,-460.0,0.00021907,4]
[365190795,1749525294246,-460.0,0.00021907,4]
[365190796,1749525294268,-460.0,0.00021907,4]
[365190797,1749525294290,-460.0,0.00021907,4]
[365190798,1749525294311,-460.0,0.00021907,4]
[365190799,1749525294331,-460.0,0.00021907,4]
[365190800,1749525294353,-460.0,0.00021907,4]
[365190801,1749525294374,-565.95,0.00021908,4]
[365190802,1749525294395,-460.0,0.00021908,4]
[365190803,1749525294418,-460.0,0.00021908,4]
[365190804,1749525294441,-460.0,0.00021908,4]
[365190805,1749525294465,-460.0,0.00021908,4]
[365190806,1749525294492,-460.0,0.00021908,4]
[365190807,1749525294515,-460.0,0.00021908,4]
[365190808,1749525294539,-460.0,0.00021908,4]
[365190809,1749525294561,-475.81329429,0.00021908,4]
[365190810,1749525294584,-460.0,0.00021908,4]
[365190811,1749525294613,-460.0,0.00021908,4]
[365190812,1749525294635,-872.49,0.00021908,4]
[365190813,1749525294662,-460.0,0.00021908,4]
[365190814,1749525294682,-161.067334,0.00021917,2]
[365190815,1749525294703,-955.27,0.00021917,4]
[365190816,1749525294725,-818.12,0.00021917,4]
[365190817,1749525294749,-766.26,0.00021917,4]
[365190818,1749525294772,-996.64,0.00021917,4]
[365190819,1749525294794,-706.68,0.00021917,4]
[365190820,1749525294818,-739.79,0.00021917,4]
[365190821,1749525294840,-460.0,0.00021917,4]
[365190822,1749525294863,-460.0,0.00021917,4]
[365190823,1749525294883,-324.8328041,0.00021918,7]
[365190824,1749525294908,-638.0,0.00022,2]
[365190825,1749525294928,-180.24882169,0.00022061,2]
[365190826,1749525294949,-213.1263252,0.00022161,2]
[365190827,1749525294969,-728.48783479,0.00022161,2]
[365190829,1749525552062,-5000.0,0.00020566,6]
[365190830,1749525552084,-608.6021448,0.00020572,2]
[365190831,1749525552104,-229.6510048,0.00020774,2]
[365190832,1749525552127,-460.0,0.00021095,4]
[365190833,1749525552148,-460.0,0.00021095,4]
[365190834,1749525552171,-460.0,0.00021095,4]
[365190835,1749525552192,-460.0,0.00021095,4]
[365190836,1749525552214,-460.0,0.00021095,4]
[365190837,1749525552239,-460.0,0.00021095,4]
[365190838,1749525552261,-304.01205034,0.00021095,4]
[365190839,1749525552283,-460.0,0.00021095,4]
[365190840,1749525552304,-461.82,0.00021095,4]
[365190841,1749525552328,-949.46,0.00021095,4]
[365190842,1749525552351,-256.07649988,0.00021095,4]
[365190843,1749525552373,-460.0,0.00021095,4]
[365190844,1749525552395,-460.0,0.00021095,4]
[365190845,1749525552418,-460.0,0.00021095,4]
[365190846,1749525552442,-460.0,0.00021095,4]
[365190847,1749525552463,-460.0,0.00021359,4]
[365190848,1749525552485,-470.87518571,0.00021359,4]
[365190849,1749525552507,-460.0,0.00021359,4]
[365190850,1749525552530,-460.0,0.00021359,4]
[365190851,1749525552552,-467.95812597,0.00021359,4]
[365190852,1749525552575,-467.73,0.00021359,2]
[365190853,1749525552597,-479.66826203,0.00021359,4]
[365190854,1749525552618,-460.0,0.00021359,4]
[365190855,1749525552642,-460.0,0.00021369,4]
[365190856,1749525552665,-512.02,0.00021369,4]
[365190857,1749525552686,-460.0,0.00021369,4]
[365190858,1749525552709,-460.0,0.00021369,4]
[365190859,1749525552731,-460.0,0.00021369,4]
[365190860,1749525552757,-460.0,0.00021369,4]
[365190861,1749525552781,-949.46,0.00021369,4]
[365190862,1749525552803,-460.0,0.00021369,4]
[365190863,1749525552825,-460.0,0.00021369,4]
[365190864,1749525552846,-460.0,0.00021369,4]
[365190865,1749525552867,-460.0,0.00021369,4]
[365190866,1749525552886,-8901.35561778,0.00021369,2]
[365190867,1749525552907,-612.04,0.00021466,2]
[365190868,1749525552928,-178.48981878,0.00021533,2]
[365190869,1749525552948,-1200.0,0.00021632,2]
[365190870,1749525552967,-300.0,0.00021632,2]
[365190871,1749525552990,-460.0,0.00021633,4]
[365190872,1749525553011,-511.88,0.00021633,4]
[365190873,1749525553034,-460.0,0.00021633,4]
[365190874,1749525553055,-460.0,0.00021633,4]
[365190875,1749525553077,-449.14,0.00021633,4]
[365190876,1749525553099,-460.0,0.00021633,4]
[365190877,1749525553121,-834.48,0.00021633,4]
[365190878,1749525553143,-460.0,0.00021633,4]
[365190879,1749525553175,-420.0,0.00021633,4]
[365190880,1749525553198,-460.0,0.00021643,4]
[365190881,1749525553220,-201.55,0.00021643,4]
[365190882,1749525553242,-393.1,0.00021643,4]
[365190883,1749525553264,-460.0,0.00021643,4]
[365190884,1749525553287,-460.0,0.00021643,4]
[365190885,1749525553311,-949.46,0.00021643,4]
[365190886,1749525553336,-523.44,0.00021643,4]
[365190887,1749525553359,-460.0,0.00021643,4]
[365190888,1749525553384,-460.0,0.00021643,4]
[365190889,1749525553408,-460.0,0.00021643,4]
[365190890,1749525553429,-337.35589263,0.000217,2]
[365190891,1749525553458,-1072.45105856,0.000219,6]
[365190892,1749525553480,-48.92433872,0.00021906,4]
[365190893,1749525562881,49.53658109,0.00022,120]
[365190894,1749525562910,100.46341891,0.00022,120]
[365190895,1749525563972,150.0,0.00022,120]
[365190896,1749525564963,150.0,0.00022,120]
[365190897,1749525572685,150.0,0.00022,120]
[365190898,1749525574702,150.0,0.00022,120]
[365190900,1749525603168,1003.38656527,0.000173,2]
[365190915,1749525960486,-4830.0,0.00019195,2]
[365190921,1749526100645,-28710.0,0.00018,2]
[365190925,1749526129931,1880.24205261,0.00018,2]
[365190926,1749526129955,3119.75794739,0.00018,2]
[365190927,1749526142936,300.0,0.00017999,2]
[365190928,1749526145830,5000.0,0.00018,2]
[365190930,1749526161098,4137.57305261,0.00018,2]
[365190931,1749526161120,862.42694739,0.00018,2]
[365190932,1749526177416,5000.0,0.00018,2]
[365190942,1749526193343,5000.0,0.00018,2]
[365190943,1749526202364,300.0,0.00017999,2]
[365190944,1749526202415,300.0,0.00017999,2]
[365190945,1749526203057,300.0,0.00017999,2]
[365190946,1749526203095,208.0,0.00017999,2]
[365190947,1749526203519,300.0,0.00017999,2]
[365190951,1749526209492,286.90405261,0.00018,2]
[365190952,1749526209515,4713.09594739,0.00018,2]
[365190953,1749526216451,192.62650265,0.0001746,2]
[365190955,1749526226011,5000.0,0.00018,2]
[365191000,1749526232354,-2394.65011628,0.00018,2]
[365191018,1749526232519,-81605.21575099,0.00018,2]
[365191019,1749526232529,-178.36083827,0.00019289,2]